fUSD/lending_fUSD_20240630
["ID","MTS","AMOUNT","RATE_DAILY","PERIOD"]
[330740695,1719749441261,-675.38,0.00013988,3]
[330740696,1719749441272,-500.0,0.00013988,3]
[330740697,1719749441281,-500.0,0.00013988,3]
[330740698,1719749441291,-500.0,0.00013988,3]
[330740699,1719749441301,-500.0,0.00013988,3]
[330740700,1719749441311,-604.09,0.00013988,3]
[330740701,1719749441321,-500.0,0.00013988,3]
[330740702,1719749441334,-500.0,0.00013988,3]
[330740703,1719749441343,-500.0,0.00013988,3]
[330740704,1719749441352,-500.0,0.00013988,3]
[330740705,1719749441362,-500.0,0.00013988,3]
[330740706,1719749441372,-500.0,0.00013988,3]
[330740707,1719749441381,-500.0,0.00013988,3]
[330740708,1719749441390,-500.0,0.00013988,3]
[330740709,1719749441400,-500.0,0.00013988,3]
[330740710,1719749441411,-806.54,0.00013988,3]
[330740711,1719749441421,-500.0,0.00013988,3]
[330740712,1719749441431,-500.0,0.00013988,3]
[330740713,1719749441441,-500.0,0.00013988,3]
[330740714,1719749441455,-500.0,0.00013988,3]
[330740715,1719749441466,-500.0,0.00013988,3]
[330740716,1719749441476,-500.0,0.00013988,3]
[330740717,1719749441485,-500.0,0.00013988,3]
[330740718,1719749441495,-500.0,0.00013988,3]
[330740719,1719749441505,-500.0,0.00013988,3]
[330740720,1719749441514,-1000.0,0.00013988,2]
[330740721,1719749441525,-500.0,0.00013988,3]
[330740722,1719749441535,-500.0,0.00013988,3]
[330740723,1719749441544,-500.0,0.00013988,3]
[330740724,1719749441553,-500.0,0.00013988,3]
[330740725,1719749441563,-500.0,0.00013988,3]
[330740726,1719749441572,-500.0,0.00013988,3]
[330740727,1719749441582,-500.0,0.00013988,3]
[330740728,1719749441591,-500.0,0.00013988,3]
[330740729,1719749441600,-500.0,0.00013988,3]
[330740730,1719749441610,-500.0,0.00013988,3]
[330740731,1719749441620,-500.0,0.00013988,3]
[330740732,1719749441629,-244.83187999,0.00013988,3]
[330740733,1719749441638,-500.0,0.00013988,3]
[330740734,1719749441647,-500.0,0.00013988,3]
[330740735,1719749441657,-500.0,0.00013988,3]
[330740736,1719749441667,-500.0,0.00013988,3]
[330740737,1719749441676,-500.0,0.00013988,3]
[330740738,1719749441685,-500.0,0.00013988,3]
[330740739,1719749441694,-500.0,0.00013988,3]
[330740740,1719749441704,-500.0,0.00013988,3]
[330740741,1719749441713,-425.35668367,0.00013988,3]
[330740742,1719749441724,-511.08,0.00013988,3]
[330740743,1719749441733,-500.0,0.00013988,3]
[330740744,1719749441743,-500.0,0.00013988,3]
[330740745,1719749441752,-596.6,0.00013988,3]
[330740746,1719749441762,-500.0,0.00013988,3]
[330740747,1719749441772,-500.0,0.00013988,3]
[330740748,1719749441782,-500.0,0.00013988,3]
[330740749,1719749441791,-500.0,0.00013988,3]
[330740750,1719749441801,-512.38,0.00013988,3]
[330740751,1719749441810,-500.0,0.00013988,3]
[330740752,1719749441820,-500.0,0.00013988,3]
[330740753,1719749441829,-500.0,0.00013988,3]
[330740754,1719749441838,-500.0,0.00013988,3]
[330740755,1719749441849,-500.0,0.00013988,3]
[330740756,1719749441859,-562.17,0.00013988,3]
[330740757,1719749441869,-500.0,0.00013988,3]
[330740758,1719749441879,-550.14,0.00013988,3]
[330740759,1719749441888,-500.0,0.00013988,3]
[330740760,1719749441897,-500.0,0.00013988,3]
[330740761,1719749441907,-626.39,0.00013988,3]
[330740762,1719749441915,-778.12,0.00013988,3]
[330740763,1719749441924,-500.0,0.00013988,3]
[330740764,1719749441933,-500.0,0.00013988,3]
[330740765,1719749441942,-500.0,0.00013988,3]
[330740766,1719749441950,-637.33,0.00013988,3]
[330740767,1719749441959,-500.0,0.00013988,3]
[330740768,1719749441969,-500.0,0.00013988,3]
[330740769,1719749441978,-935.91,0.00013988,3]
[330740770,1719749441988,-500.0,0.00013988,3]
[330740771,1719749441998,-500.0,0.00013988,3]
[330740772,1719749442009,-500.0,0.00013988,3]
[330740773,1719749442018,-500.0,0.00013988,3]
[330740774,1719749442029,-650.86,0.00013988,3]
[330740775,1719749442039,-503.38,0.00013988,3]
[330740776,1719749442048,-751.04,0.00013988,3]
[330740777,1719749442058,-500.0,0.00013988,3]
[330740778,1719749442067,-500.0,0.00013988,3]
[330740779,1719749442076,-500.0,0.00013988,3]
[330740780,1719749442086,-500.0,0.00013988,3]
[330740781,1719749442096,-500.0,0.00013988,3]
[330740782,1719749442105,-500.0,0.00013988,3]
[330740783,1719749442114,-500.0,0.00013988,3]
[330740784,1719749442123,-817.33,0.00013988,3]
[330740785,1719749442132,-500.0,0.00013988,3]
[330740786,1719749442142,-645.13,0.00013988,3]
[330740787,1719749442151,-571.01,0.00013988,3]
[330740788,1719749442161,-500.0,0.00013988,3]
[330740789,1719749442170,-833.13,0.00013988,3]
[330740790,1719749442179,-614.08,0.00013988,3]
[330740791,1719749442189,-507.18,0.00013988,3]
[330740792,1719749442198,-500.0,0.00013988,3]
[330740793,1719749442207,-787.64,0.00013988,3]
[330740794,1719749442216,-500.0,0.00013988,3]
[330740795,1719749442225,-500.0,0.00013988,3]
[330740796,1719749442234,-682.87,0.00013988,3]
[330740797,1719749442244,-795.53,0.00013988,3]
[330740798,1719749442253,-500.0,0.00013988,3]
[330740799,1719749442262,-500.0,0.00013988,3]
[330740800,1719749442271,-805.15,0.00013988,3]
[330740802,1719749442281,-737.33,0.00013988,3]
[330740803,1719749442290,-749.6,0.00013988,3]
[330740804,1719749442299,-500.0,0.00013988,3]
[330740805,1719749442307,-537.13,0.00013988,3]
[330740806,1719749442316,-500.0,0.00013988,3]
[330740807,1719749442325,-1005.25,0.00013988,3]
[330740808,1719749442334,-500.0,0.00013988,3]
[330740809,1719749442343,-500.0,0.00013988,3]
[330740810,1719749442352,-586.87,0.00013988,3]
[330740811,1719749442361,-500.0,0.00013988,3]
[330740813,1719749442371,-500.0,0.00013988,3]
[330740815,1719749442380,-500.0,0.00013988,3]
[330740817,1719749442390,-810.02,0.00013988,3]
[330740819,1719749442399,-500.0,0.00013988,3]
[330740821,1719749442409,-500.0,0.00013988,3]
[330740822,1719749442418,-812.58,0.00013988,3]
[330740824,1719749442427,-500.0,0.00013988,3]
[330740825,1719749442436,-500.0,0.00013988,3]
[330740826,1719749442447,-646.62,0.00013988,3]
[330740827,1719749442460,-534.13,0.00013988,3]
[330740828,1719749442470,-576.55,0.00013988,3]
[330740829,1719749442479,-500.0,0.00013988,3]
[330740830,1719749442488,-624.36,0.00013988,3]
[330740831,1719749442498,-500.0,0.00013988,3]
[330740832,1719749442508,-748.27,0.00013988,3]
[330740833,1719749442581,-572.02,0.00013988,3]
[330740834,1719749442590,-500.0,0.00013988,3]
[330740835,1719749442599,-553.34,0.00013988,3]
[330740836,1719749442609,-500.0,0.00013988,3]
[330740837,1719749442619,-500.0,0.00013988,3]
[330740838,1719749442628,-500.0,0.00013988,3]
[330740839,1719749442637,-500.0,0.00013988,3]
[330740840,1719749442646,-500.0,0.00013988,3]
[330740841,1719749442655,-500.0,0.00013988,3]
[330740842,1719749442663,-597.07,0.00013988,3]
[330740843,1719749442672,-500.0,0.00013988,3]
[330740844,1719749442681,-500.0,0.00013988,3]
[330740845,1719749442690,-691.1,0.00013988,3]
[330740846,1719749442700,-500.0,0.00013988,3]
[330740847,1719749442708,-646.36,0.00013988,3]
[330740848,1719749442718,-788.66,0.00013988,3]
[330740849,1719749442727,-729.12,0.00013988,3]
[330740850,1719749442735,-500.0,0.00013988,3]
[330740851,1719749442745,-500.0,0.00013988,3]
[330740852,1719749442754,-500.0,0.00013988,3]
[330740853,1719749442764,-1161.72,0.00013988,3]
[330740854,1719749442773,-500.0,0.00013988,3]
[330740855,1719749442783,-500.0,0.00013988,3]
[330740856,1719749442793,-536.12,0.00013988,3]
[330740857,1719749442803,-505.01,0.00013988,3]
[330740858,1719749442813,-847.97,0.00013988,3]
[330740859,1719749442823,-500.0,0.00013988,3]
[330740860,1719749442833,-1023.07,0.00013988,3]
[330740861,1719749442843,-752.33,0.00013988,3]
[330740862,1719749442852,-625.06,0.00013988,3]
[330740863,1719749442861,-956.99,0.00013988,3]
[330740864,1719749442870,-394.63,0.00013988,3]
[330740865,1719749442879,-726.12,0.00013988,3]
[330740866,1719749442888,-195.18,0.00013988,3]
[330740867,1719749442898,-732.82,0.00013988,3]
[330740868,1719749442907,-637.84,0.00013988,3]
[330740869,1719749442917,-979.59,0.00013988,3]
[330740870,1719749442927,-687.21,0.00013988,3]
[330740871,1719749442936,-707.73,0.00013988,3]
[330740872,1719749442945,-803.94,0.00013988,3]
[330740873,1719749442955,-1072.34,0.00013988,3]
[330740874,1719749442964,-555.72,0.00013988,3]
[330740875,1719749442973,-500.0,0.00013988,3]
[330740876,1719749442982,-602.39,0.00013988,3]
[330740877,1719749442991,-500.0,0.00013988,3]
[330740878,1719749443001,-1058.36,0.00013988,3]
[330740879,1719749443010,-500.0,0.00013988,3]
[330740880,1719749443020,-500.0,0.00013988,3]
[330740881,1719749443030,-500.0,0.00013989,3]
[330740882,1719749443039,-1335.51,0.00013989,3]
[330740883,1719749443048,-500.0,0.00013989,3]
[330740884,1719749443059,-1062.94,0.00013989,3]
[330740885,1719749443069,-500.0,0.00013989,3]
[330740886,1719749443078,-500.0,0.00013989,3]
[330740887,1719749443087,-1609.66,0.00013989,3]
[330740888,1719749443097,-1258.54,0.00013989,3]
[330740889,1719749443106,-856.82,0.00013989,3]
[330740890,1719749443116,-1035.5,0.00013989,3]
[330740891,1719749443125,-818.87,0.00013989,3]
[330740892,1719749443134,-1466.81,0.00013989,3]
[330740893,1719749443143,-1616.81,0.00013989,3]
[330740894,1719749443152,-500.0,0.00013989,3]
[330740895,1719749443162,-500.0,0.00013989,3]
[330740896,1719749443171,-1667.15,0.00013989,3]
[330740897,1719749443180,-1145.38,0.00013989,3]
[330740898,1719749443189,-1658.59,0.00013989,3]
[330740899,1719749443198,-1135.16,0.00013989,3]
[330740900,1719749443207,-1950.31,0.00013989,3]
[330740901,1719749443216,-500.0,0.00013989,3]
[330740902,1719749443225,-16775.67,0.00013989,3]
[330740903,1719749443234,-1377.12,0.00013989,3]
[330740904,1719749443243,-1956.33,0.00013989,3]
[330740905,1719749443253,-2285.87,0.00013989,3]
[330740906,1719749443262,-1199.18,0.00013989,3]
[330740907,1719749443272,-1706.49,0.00013989,3]
[330740909,1719749443281,-1271.19,0.00013989,3]
[330740910,1719749443290,-528.7,0.00013989,3]
[330740912,1719749443302,-4535.49,0.00013989,3]
[330740915,1719749443313,-1404.71,0.00013989,3]
[330740916,1719749443324,-1120.02,0.00013989,3]
[330740917,1719749443335,-1281.85,0.00013989,3]
[330740918,1719749443344,-1889.43,0.00013989,3]
[330740919,1719749443353,-1033.46,0.00013989,3]
[330740920,1719749443363,-704.15,0.00013989,3]
[330740921,1719749443373,-526.2,0.00013989,3]
[330740922,1719749443382,-945.0,0.00013989,3]
[330740923,1719749443391,-500.0,0.00013989,3]
[330740924,1719749443400,-1433.5,0.00013989,3]
[330740925,1719749443411,-1269.12,0.00013989,3]
[330740926,1719749443420,-2171.46434149,0.00013989,3]
[330740927,1719749443906,-1171.84565851,0.00013989,3]
[330740928,1719749443916,-1433.95087989,0.00013989,3]
[330740929,1719749444978,-500.0,0.00013986,3]
[330740930,1719749444987,-500.0,0.00013987,3]
[330740931,1719749444998,-38.07912011,0.00013989,3]
[330740932,1719749445007,-155.0,0.00013989,2]
[330740933,1719749445016,-475.37381688,0.00013989,2]
[330740934,1719749445025,-331.54706301,0.00013989,3]
[330740935,1719749445037,-1334.80293699,0.00013989,3]
[330740936,1719749445046,-265.34,0.0001399,3]
[330740937,1719749445055,-97.87893246,0.0001399,3]
[330740938,1719749445067,-402.12106754,0.0001399,3]
[330740939,1719749445076,-903.18,0.0001399,3]
[330740940,1719749445085,-560.45,0.0001399,3]
[330740941,1719749445094,-500.0,0.0001399,3]
[330740942,1719749445104,-1440.13664552,0.0001399,3]
[330740943,1719749445121,-1102.30335448,0.0001399,3]
[330740944,1719749445130,-157.67739316,0.00013998,2]
[330740945,1719749445140,-412.4981325,0.00013999,2]
[330740946,1719749445150,-316.16838423,0.00014,2]
[330740947,1719749445162,-356.83161577,0.00014,2]
[330740948,1719749445171,-9987.01567977,0.00014,2]
[330740949,1719749445184,-879828.02320854,0.00014,2]
[330740950,1719749445195,-967.5007119,0.00014,2]
[330740951,1719749445207,-348.40375138,0.00014,2]
[330740952,1719749445219,-1202.53952564,0.00014,2]
[330740953,1719749445230,-450.95372915,0.00014,2]
[330740954,1719749445250,-381.03529472,0.00014,2]
[330740955,1719749445268,-151928.46017357,0.00014,2]
[330740956,1719749445278,-461.65351825,0.00014,2]
[330740957,1719749445287,-6000.0,0.00014,2]
[330740958,1719749445295,-222.35,0.00014053,2]
[330740959,1719749445305,-487.2,0.00014067,2]
[330740960,1719749445314,-4227.49331429,0.00014069,2]
[330740961,1719749445324,-158.18850383,0.00014069,2]
[330740962,1719749445333,-500.0,0.00014096,3]
[330740963,1719749445342,-500.0,0.00014096,3]
[330740964,1719749445351,-727.96,0.00014096,3]
[330740965,1719749445361,-500.0,0.00014096,3]
[330740966,1719749445370,-542.41,0.00014096,3]
[330740967,1719749445381,-793.12,0.00014096,3]
[330740968,1719749445390,-669.85,0.00014096,3]
[330740969,1719749445399,-513.54,0.00014096,3]
[330740970,1719749445409,-500.0,0.00014096,3]
[330740971,1719749445419,-762.55,0.00014096,3]
[330740972,1719749445429,-500.0,0.00014096,3]
[330740973,1719749445438,-500.0,0.00014096,3]
[330740974,1719749445449,-500.0,0.00014096,3]
[330740975,1719749445461,-537.55,0.00014096,3]
[330740976,1719749445471,-652.87,0.00014096,3]
[330740977,1719749445480,-500.0,0.00014096,3]
[330740978,1719749445491,-580.26,0.00014096,3]
[330740979,1719749445501,-500.0,0.00014096,3]
[330740980,1719749445511,-500.0,0.00014096,3]
[330740981,1719749445521,-500.0,0.00014096,3]
[330740982,1719749445532,-658.2,0.00014096,3]
[330740983,1719749445542,-500.0,0.00014096,3]
[330740984,1719749445551,-932.35,0.00014096,3]
[330740985,1719749445561,-500.0,0.00014096,3]
[330740986,1719749445572,-404.6,0.00014096,3]
[330740987,1719749445582,-500.0,0.00014096,3]
[330740988,1719749445594,-500.0,0.00014096,3]
[330740989,1719749445604,-511.99,0.00014096,3]
[330740990,1719749445614,-500.0,0.00014096,3]
[330740991,1719749445623,-924.2,0.00014096,3]
[330740992,1719749445633,-791.13,0.00014096,3]
[330740993,1719749445642,-283.63628289,0.00014096,3]
[330740994,1719749445658,-527.15371711,0.00014096,3]
[330740995,1719749445668,-640.51,0.00014096,3]
[330740996,1719749445678,-1113.99,0.00014096,3]
[330740997,1719749445688,-500.0,0.00014096,3]
[330740998,1719749445698,-500.0,0.00014096,3]
[330740999,1719749445707,-713.13,0.00014096,3]
[330741000,1719749445717,-601.64,0.00014096,3]
[330741001,1719749445727,-500.0,0.00014096,3]
[330741002,1719749445737,-1022.53,0.00014096,3]
[330741003,1719749445746,-590.96,0.00014096,3]
[330741004,1719749445755,-500.0,0.00014096,3]
[330741005,1719749445765,-4391.84,0.00014096,3]
[330741006,1719749445775,-1184.02,0.00014096,3]
[330741007,1719749445785,-1915.78,0.00014096,3]
[330741008,1719749445797,-512.23,0.00014096,3]
[330741009,1719749445807,-500.0,0.00014096,3]
[330741010,1719749445816,-417.10698053,0.00014096,3]
[330741011,1719749445826,-500.0,0.00014096,3]
[330741012,1719749445835,-1852.08,0.00014096,3]
[330741013,1719749445844,-2724.07,0.00014096,3]
[330741014,1719749445854,-783.78,0.00014096,3]
[330741015,1719749445863,-500.0,0.00014096,3]
[330741016,1719749445872,-1471.77,0.00014096,3]
[330741017,1719749445882,-500.0,0.00014096,3]
[330741018,1719749445891,-535.33,0.00014096,3]
[330741019,1719749445900,-2036.27,0.00014096,3]
[330741020,1719749445909,-804.08,0.00014096,3]
[330741021,1719749445918,-857.63,0.00014096,3]
[330741022,1719749445928,-1319.94,0.00014096,3]
[330741023,1719749445938,-873.79,0.00014096,3]
[330741024,1719749445947,-989.68,0.00014096,3]
[330741025,1719749445956,-653.27,0.00014096,3]
[330741027,1719749445966,-1010.37,0.00014096,3]
[330741028,1719749445975,-591.06,0.00014096,3]
[330741030,1719749445985,-500.0,0.00014096,3]
[330741031,1719749445994,-3607.47,0.00014096,3]
[330741032,1719749446004,-1262.93,0.00014096,3]
[330741033,1719749446014,-995.62,0.00014096,3]
[330741035,1719749446024,-1011.37,0.00014096,3]
[330741037,1719749446035,-184.73131542,0.00014096,3]
[330741038,1719749446047,-369.87868458,0.00014096,3]
[330741039,1719749446057,-860.84,0.00014096,3]
[330741040,1719749446066,-1033.42,0.00014096,3]
[330741041,1719749446076,-500.0,0.00014096,3]
[330741042,1719749446086,-647.54849726,0.00014096,3]
[330741043,1719749446098,-295.27717019,0.00014096,3]
[330741044,1719749446110,-468.66433255,0.00014096,3]
[330741045,1719749446119,-21.50903505,0.00014096,3]
[330741046,1719749446605,-500.0,0.00013988,3]
[330741047,1719749446616,-875.13096495,0.00014096,3]
[330741048,1719749446625,-500.0,0.00014096,3]
[330741049,1719749446635,-500.0,0.00014097,3]
[330741050,1719749446644,-500.0,0.00014097,3]
[330741051,1719749446654,-500.0,0.00014097,3]
[330741052,1719749446663,-177.83225518,0.00014097,3]
[330741053,1719749446675,-322.16774482,0.00014097,3]
[330741054,1719749446685,-500.0,0.00014097,3]
[330741055,1719749446694,-500.0,0.00014097,3]
[330741056,1719749446703,-500.0,0.00014097,3]
[330741057,1719749446713,-500.0,0.00014097,3]
[330741058,1719749446724,-22.40225518,0.00014097,3]
[330741059,1719749446736,-308.94361421,0.00014097,3]
[330741060,1719749446748,-168.65413061,0.00014097,3]
[330741061,1719749446757,-500.0,0.00014097,3]
[330741062,1719749446767,-500.0,0.00014097,3]
[330741063,1719749446783,-664.32,0.00014097,3]
[330741064,1719749446793,-328.94013339,0.00014097,3]
[330741065,1719749446805,-171.05986661,0.00014097,3]
[330741066,1719749446816,-500.0,0.00014097,3]
[330741067,1719749446827,-500.0,0.00014097,3]
[330741068,1719749446837,-677.08,0.00014097,3]
[330741069,1719749446847,-500.0,0.00014097,3]
[330741070,1719749446856,-500.0,0.00014097,3]
[330741071,1719749446866,-500.0,0.00014097,3]
[330741072,1719749446875,-752.49,0.00014097,3]
[330741073,1719749446885,-500.0,0.00014097,3]
[330741074,1719749446894,-500.0,0.00014097,3]
[330741075,1719749446902,-500.0,0.00014097,3]
[330741076,1719749446912,-500.0,0.00014097,3]
[330741077,1719749446923,-500.0,0.00014097,3]
[330741078,1719749446932,-500.0,0.00014097,3]
[330741079,1719749446942,-500.0,0.00014097,3]
[330741080,1719749446953,-500.0,0.00014097,3]
[330741081,1719749446963,-500.0,0.00014097,3]
[330741082,1719749446973,-500.0,0.00014097,3]
[330741083,1719749446984,-575.32,0.00014097,3]
[330741084,1719749446994,-500.0,0.00014097,3]
[330741085,1719749447004,-500.0,0.00014097,3]
[330741086,1719749447014,-500.0,0.00014097,3]
[330741087,1719749447026,-500.0,0.00014097,3]
[330741088,1719749447036,-500.0,0.00014097,3]
[330741089,1719749447046,-659.45,0.00014097,3]
[330741090,1719749447057,-500.0,0.00014097,3]
[330741091,1719749447067,-588.26,0.00014097,3]
[330741092,1719749447077,-500.0,0.00014097,3]
[330741093,1719749447087,-500.0,0.00014097,3]
[330741094,1719749447097,-500.0,0.00014097,3]
[330741095,1719749447107,-500.0,0.00014097,3]
[330741096,1719749447117,-500.0,0.00014097,3]
[330741097,1719749447128,-500.0,0.00014097,3]
[330741098,1719749447138,-500.0,0.00014097,3]
[330741099,1719749447148,-500.0,0.00014097,3]
[330741100,1719749447158,-500.0,0.00014097,3]
[330741101,1719749447167,-500.0,0.00014097,3]
[330741102,1719749447177,-500.0,0.00014097,3]
[330741103,1719749447187,-500.0,0.00014097,3]
[330741104,1719749447196,-191.35,0.00014097,3]
[330741105,1719749447207,-566.82,0.00014097,3]
[330741106,1719749447218,-500.0,0.00014097,3]
[330741107,1719749447229,-360.63344943,0.00014097,3]
[330741108,1719749447239,-500.0,0.00014097,3]
[330741109,1719749447250,-500.0,0.00014097,3]
[330741110,1719749447260,-500.0,0.00014097,3]
[330741111,1719749447271,-500.0,0.00014097,3]
[330741112,1719749447282,-500.0,0.00014097,3]
[330741113,1719749447292,-500.0,0.00014097,3]
[330741114,1719749447302,-500.0,0.00014097,3]
[330741115,1719749447312,-535.1,0.00014097,3]
[330741116,1719749447322,-500.0,0.00014097,3]
[330741117,1719749447332,-500.0,0.00014097,3]
[330741118,1719749447342,-500.0,0.00014097,3]
[330741119,1719749447352,-500.0,0.00014097,3]
[330741120,1719749447363,-500.0,0.00014097,3]
[330741121,1719749447374,-500.0,0.00014097,3]
[330741122,1719749447384,-500.0,0.00014097,3]
[330741123,1719749447394,-500.0,0.00014097,3]
[330741124,1719749447406,-282.08544371,0.00014097,3]
[330741125,1719749447416,-500.0,0.00014097,3]
[330741126,1719749447426,-500.0,0.00014097,3]
[330741127,1719749447439,-500.0,0.00014097,3]
[330741128,1719749447453,-500.0,0.00014097,3]
[330741129,1719749447463,-500.0,0.00014097,3]
[330741130,1719749447472,-500.0,0.00014097,3]
[330741131,1719749447482,-500.0,0.00014097,3]
[330741132,1719749447492,-500.0,0.00014097,3]
[330741133,1719749447503,-500.0,0.00014097,3]
[330741134,1719749447515,-500.0,0.00014097,3]
[330741135,1719749447528,-553.67,0.00014097,3]
[330741136,1719749447538,-500.0,0.00014097,3]
[330741137,1719749447547,-796.39,0.00014097,3]
[330741138,1719749447559,-1001.57,0.00014097,3]
[330741139,1719749447569,-500.58,0.00014097,3]
[330741140,1719749447579,-500.0,0.00014097,3]
[330741141,1719749447589,-657.32,0.00014097,3]
[330741142,1719749447599,-632.42,0.00014097,3]
[330741143,1719749447609,-500.0,0.00014097,3]
[330741144,1719749447620,-500.0,0.00014097,3]
[330741145,1719749447630,-961.77,0.00014097,3]
[330741146,1719749447641,-500.0,0.00014097,3]
[330741147,1719749447651,-291.5509198,0.00014097,3]
[330741148,1719749447660,-926.29,0.00014097,3]
[330741149,1719749447670,-1077.16,0.00014097,3]
[330741150,1719749447996,-500.0,0.00014097,3]
[330741151,1719749448007,-500.0,0.00014097,3]
[330741152,1719749448018,-500.0,0.00014097,3]
[330741153,1719749448028,-571.06,0.00014097,3]
[330741154,1719749448038,-500.0,0.00014097,3]
[330741155,1719749448047,-500.0,0.00014097,3]
[330741156,1719749448057,-500.0,0.00014097,3]
[330741157,1719749448067,-500.0,0.00014097,3]
[330741158,1719749448077,-1004.2,0.00014097,3]
[330741159,1719749448086,-500.0,0.00014097,3]
[330741160,1719749448095,-250.0,0.00014097,3]
[330741161,1719749448105,-500.0,0.00014097,3]
[330741162,1719749448114,-500.0,0.00014097,3]
[330741163,1719749448124,-721.18,0.00014097,3]
[330741164,1719749448133,-500.0,0.00014097,3]
[330741165,1719749448143,-500.0,0.00014097,3]
[330741166,1719749448153,-500.0,0.00014097,3]
[330741167,1719749448162,-595.9,0.00014097,3]
[330741168,1719749448172,-500.0,0.00014097,3]
[330741169,1719749448181,-500.0,0.00014097,3]
[330741170,1719749448190,-696.32,0.00014097,3]
[330741171,1719749448199,-500.0,0.00014097,3]
[330741172,1719749448209,-500.0,0.00014097,3]
[330741173,1719749448218,-500.0,0.00014097,3]
[330741174,1719749448228,-500.0,0.00014097,3]
[330741175,1719749448237,-500.0,0.00014097,3]
[330741176,1719749448247,-500.0,0.00014097,3]
[330741177,1719749448257,-500.0,0.00014097,3]
[330741178,1719749448267,-500.0,0.00014097,3]
[330741179,1719749448278,-500.0,0.00014097,3]
[330741180,1719749448287,-500.0,0.00014097,3]
[330741181,1719749448297,-500.0,0.00014097,3]
[330741182,1719749448306,-500.0,0.00014097,3]
[330741183,1719749448316,-500.0,0.00014097,3]
[330741184,1719749448325,-500.0,0.00014097,3]
[330741185,1719749448335,-500.0,0.00014097,3]
[330741186,1719749448345,-500.0,0.00014097,3]
[330741188,1719749448354,-500.0,0.00014097,3]
[330741189,1719749448363,-500.0,0.00014097,3]
[330741190,1719749448372,-500.0,0.00014097,3]
[330741191,1719749448382,-500.0,0.00014097,3]
[330741192,1719749448391,-659.41,0.00014097,3]
[330741193,1719749448401,-500.0,0.00014097,3]
[330741194,1719749448411,-500.0,0.00014097,3]
[330741195,1719749448420,-500.0,0.00014097,3]
[330741196,1719749448430,-500.0,0.00014097,3]
[330741197,1719749448440,-500.0,0.00014097,3]
[330741198,1719749448450,-500.0,0.00014097,3]
[330741199,1719749448462,-783.97,0.00014097,3]
[330741200,1719749448472,-834.2,0.00014097,3]
[330741201,1719749448481,-500.0,0.00014097,3]
[330741202,1719749448491,-500.0,0.00014097,3]
[330741203,1719749448502,-786.05,0.00014097,3]
[330741204,1719749448512,-943.82,0.00014097,3]
[330741205,1719749448522,-500.0,0.00014097,3]
[330741206,1719749448532,-535.62,0.00014097,3]
[330741207,1719749448543,-899.55,0.00014097,3]
[330741208,1719749448553,-500.0,0.00014097,3]
[330741209,1719749448563,-500.0,0.00014097,3]
[330741210,1719749448572,-606.41,0.00014097,3]